fUSD/lending_fUSD_20250201
["ID","MTS","AMOUNT","RATE_DAILY","PERIOD"]
[351157725,1738369832812,-169.97,0.00013699,2]
[351157726,1738369832821,-150.0,0.00014384,2]
[351157727,1738369832831,-600.0,0.00015,2]
[351157728,1738369832840,-150.0,0.00015068,2]
[351157729,1738369832849,-150.0,0.00015068,2]
[351157730,1738369832858,-882.03,0.00015189,2]
[351157731,1738369832868,-287.79,0.00016813,2]
[351157732,1738369832876,-255.0,0.00016879,2]
[351157733,1738369832885,-189.5529735,0.0001688,2]
[351157734,1738369837780,-520.07379687,0.0001688,2]
[351157735,1738369837793,-892.28927374,0.0001688,2]
[351157824,1738369839847,-1876.14972,0.0001688,2]
[351157827,1738369840068,-726.4589622,0.0001688,2]
[351157828,1738369840177,-19129.93873065,0.0001688,2]
[351157829,1738369840234,-13086.69999999,0.0001688,2]
[351158116,1738369843233,-1443.64072596,0.0001688,2]
[351158117,1738369843254,-1050.76466996,0.0001688,2]
[351158118,1738369843268,-1816.1489622,0.0001688,2]
[351158128,1738369845908,-14207.91739397,0.0001688,2]
[351158129,1738369846124,-2484.5744,0.0001688,2]
[351158130,1738369846184,-868.8542676,0.0001688,2]
[351158366,1738370916604,157.29,0.00010137,2]
[351158386,1738371032146,-169.97,0.00013699,2]
[351158388,1738371032156,-150.0,0.00013778,2]
[351158390,1738371032165,-837.92,0.00014015,2]
[351158397,1738371032343,-150.0,0.00014391,2]
[351158398,1738371032353,-150.0,0.00015068,2]
[351158399,1738371032363,-499.28,0.00015727,2]
[351158400,1738371032375,-300.0,0.00015794,2]
[351158401,1738371032384,-186.57,0.00015795,2]
[351158402,1738371032394,-13299.96,0.00015796,2]
[351158403,1738371032404,-170.13,0.00015796,2]
[351158404,1738371032413,-193.07,0.00016151,2]
[351158405,1738371032422,-837.92,0.00016279,2]
[351158406,1738371032432,-1655.5082,0.00016361,2]
[351158407,1738371032443,-150.0,0.00016411,2]
[351158408,1738371032453,-300.0,0.00016438,2]
[351158409,1738371032463,-376.42,0.00016461,2]
[351158410,1738371032474,-377.09,0.00016461,2]
[351158411,1738371032483,-368.85,0.00016461,2]
[351158412,1738371032492,-376.08,0.00016461,2]
[351158413,1738371032502,-380.49,0.00016461,2]
[351158414,1738371032512,-368.78,0.00016461,2]
[351158415,1738371032522,-1000.0,0.00016461,2]
[351158416,1738371032531,-356.04873285,0.00016534,2]
[351158417,1738371032540,-186.57,0.00016584,2]
[351158418,1738371032550,-157.03,0.00016658,30]
[351158419,1738371032563,-378.25,0.00016779,2]
[351158420,1738371032573,-377.93,0.00016779,2]
[351158421,1738371032582,-367.73,0.00016779,2]
[351158422,1738371032592,-375.74,0.00016779,2]
[351158423,1738371032604,-371.05,0.00016779,2]
[351158425,1738371032614,-5000.0,0.0001678,2]
[351158426,1738371032623,-982.62,0.0001678,2]
[351158427,1738371032633,-372.13,0.0001678,2]
[351158428,1738371032642,-500.0,0.0001678,2]
[351158429,1738371032652,-520.49682984,0.0001678,2]
[351158430,1738371032661,-379.93,0.0001678,2]
[351158431,1738371032672,-367.56,0.0001678,2]
[351158432,1738371032683,-367.82,0.0001678,2]
[351158433,1738371032692,-377.35,0.0001678,2]
[351158434,1738371032702,-379.36,0.0001678,2]
[351158436,1738371032711,-375.14,0.0001678,2]
[351158438,1738371032721,-377.81,0.0001678,2]
[351158440,1738371032729,-369.0,0.0001678,2]
[351158441,1738371032738,-367.91,0.0001678,2]
[351158443,1738371032748,-376.96,0.0001678,2]
[351158445,1738371032757,-378.97,0.0001678,2]
[351158447,1738371032767,-367.52,0.0001678,2]
[351158449,1738371032776,-376.09,0.0001678,2]
[351158451,1738371032785,-380.36,0.0001678,2]
[351158453,1738371032795,-376.6,0.0001678,2]
[351158458,1738371032809,-369.08,0.0001678,2]
[351158459,1738371032820,-368.06,0.0001678,2]
[351158462,1738371032829,-162.74801367,0.00016879,2]
[351158466,1738371032838,-1423.995,0.00016879,2]
[351158468,1738371032848,-169.044,0.00016879,2]
[351158472,1738371032857,-254.89348078,0.00016879,2]
[351158474,1738371032866,-107059.80338046,0.00016879,2]
[351158480,1738371032893,-1720.1687508,0.00016879,2]
[351158491,1738371032982,-487.76859,0.00016879,2]
[351158506,1738371033122,-278.26955217,0.00016879,2]
[351158511,1738371033152,-368.49929451,0.00016879,2]
[351158605,1738371037944,-250.0,0.00015966,2]
[351158606,1738371037954,-8915.67651754,0.00016879,2]
[351158607,1738371037965,-17815.0,0.00016879,2]
[351158608,1738371037976,-1030.0,0.00016879,2]
[351158611,1738371038211,-2136.98131166,0.00016879,2]
[351158612,1738371038222,-316.72199,0.00016879,2]
[351158613,1738371038241,-23818.09343367,0.00016879,2]
[351158643,1738371040278,-675.99532,0.00016879,2]
[351158644,1738371040290,-2057.2896228,0.00016879,2]
[351158645,1738371040335,-806.02017509,0.00016879,2]
[351158646,1738371040346,-345.4099159,0.00016879,2]
[351158647,1738371040393,-7012.65436287,0.00016879,2]
[351158648,1738371040405,-4702.1225,0.00016879,2]
[351158649,1738371040416,-1037.8368012,0.00016879,2]
[351158650,1738371040450,-5008.03296378,0.00016879,2]
[351158651,1738371040565,-980.784,0.00016879,2]
[351158652,1738371040577,-1712.24512789,0.00016879,2]
[351158653,1738371040713,-426.040005,0.00016879,2]
[351158654,1738371040725,-3047.62992868,0.00016879,2]
[351158655,1738371040767,-1992.81513863,0.00016879,2]
[351158656,1738371040779,-451.50124513,0.00016879,2]
[351158700,1738371043098,-5549.9,0.00016879,2]
[351158701,1738371043109,-3610.21612917,0.00016879,2]
[351158717,1738371043262,-3690.15440453,0.00016879,2]
[351158719,1738371043274,-23546.13089427,0.00016879,2]
[351158725,1738371043326,-482.15821,0.00016879,2]
[351158728,1738371043338,-558.900001,0.00016879,2]
[351158889,1738371046135,-5308.0,0.00016879,2]
[351158890,1738371046191,-102899.99999994,0.00016879,2]
[351158891,1738371046247,-6275.63608125,0.00016879,2]
[351158892,1738371046321,-261.0699264,0.00016879,2]
[351158893,1738371046410,-1027.06502752,0.00016879,2]
[351158894,1738371046469,-317.61014283,0.00016879,2]
[351158895,1738371046524,-568.85758884,0.00016879,2]
[351159052,1738371925851,272.41,0.00010137,2]
[351159058,1738372232230,-829.17,0.0001379,2]
[351159059,1738372232243,-150.0,0.00014655,2]
[351159060,1738372232256,-150.0,0.00015169,2]
[351159061,1738372232268,-56.43403767,0.000152,2]
[351159062,1738372232289,-93.56596233,0.000152,2]
[351159063,1738372232301,-154.45,0.00015519,2]
[351159064,1738372232314,-200.0,0.00015545,2]
[351159065,1738372232327,-354.39,0.0001557,2]
[351159066,1738372232339,-1000.0,0.00015579,2]
[351159067,1738372232352,-414.91,0.00015629,2]
[351159068,1738372232366,-150.0,0.00015668,2]
[351159069,1738372232378,-1500.0,0.00015688,2]
[351159070,1738372232391,-186.57,0.000157,2]
[351159071,1738372232404,-428.03,0.00015715,2]
[351159072,1738372232416,-322.0,0.00015973,2]
[351159073,1738372232428,-5239.3676326,0.00016,2]
[351159074,1738372232440,-829.17,0.00016054,2]
[351159075,1738372232452,-29570.0,0.00016137,2]
[351159076,1738372232464,-254.56,0.00016193,2]
[351159077,1738372232477,-200.0,0.000164,5]
[351159078,1738372232489,-368.03,0.0001648,2]
[351159079,1738372232501,-500.0,0.000165,6]
[351159080,1738372232514,-368.17,0.00016522,2]
[351159081,1738372232526,-374.36,0.00016586,2]
[351159082,1738372232539,-800.0,0.000166,6]
[351159083,1738372232551,-157.03,0.00016658,30]
[351159084,1738372232564,-473.0,0.00016678,2]
[351159085,1738372232576,-621.57543399,0.00016679,2]
[351159086,1738372232589,-8846.9369,0.00016679,2]
[351159087,1738372232601,-4666.7095,0.00016679,2]
[351159088,1738372232615,-621.5754339,0.00016681,2]
[351159089,1738372232627,-621.5754339,0.00016684,2]
[351159091,1738372232640,-621.5754339,0.00016686,2]
[351159093,1738372232652,-621.5754339,0.00016688,2]
[351159094,1738372232664,-621.5754339,0.00016691,2]
[351159095,1738372232677,-621.5754339,0.00016693,2]
[351159096,1738372232690,-621.5754339,0.00016695,2]
[351159097,1738372232704,-621.5754339,0.00016698,2]
[351159098,1738372232717,-164.19072249,0.00016699,2]
[351159099,1738372232729,-164.19072249,0.00016699,2]
[351159100,1738372232742,-164.19072249,0.00016699,2]
[351159101,1738372232755,-164.19072249,0.000167,2]
[351159102,1738372232767,-5000.0,0.000167,2]
[351159103,1738372232780,-164.19072249,0.000167,2]
[351159104,1738372232792,-499.28863356,0.000167,2]
[351159105,1738372232804,-358.24421422,0.000167,2]
[351159106,1738372232816,-166.4562208,0.000167,2]
[351159107,1738372232828,-1100.0,0.000167,6]
[351159108,1738372232841,-621.5754339,0.000167,2]
[351159109,1738372232854,-388.08681234,0.000167,2]
[351159110,1738372232867,-164.19072249,0.000167,2]
[351159111,1738372232880,-3373.95043234,0.000167,2]
[351159112,1738372232894,-182.54789094,0.000167,2]
[351159113,1738372232906,-3000.0,0.0001671,2]
[351159114,1738372232916,-369.71,0.0001671,2]
[351159115,1738372232928,-377.27,0.0001671,2]
[351159116,1738372232937,-379.31,0.0001671,2]
[351159117,1738372232946,-369.11,0.0001671,2]
[351159118,1738372232955,-381.64,0.0001671,2]
[351159119,1738372232966,-375.23,0.0001671,2]
[351159120,1738372232975,-374.75,0.0001671,2]
[351159121,1738372232985,-382.12,0.0001671,2]
[351159122,1738372233238,-367.93,0.0001671,2]
[351159123,1738372233265,-371.34,0.0001671,2]
[351159124,1738372233274,-370.56,0.0001671,2]
[351159125,1738372233283,-370.77,0.0001671,2]
[351159126,1738372233293,-376.01,0.0001671,2]
[351159127,1738372233302,-500.0,0.00016773,2]
[351159128,1738372233311,-161.59322337,0.00016773,2]
[351159129,1738372233320,-300.36033155,0.00016773,2]
[351159130,1738372233329,-152.23577085,0.00016773,2]
[351159131,1738372233338,-162.2773284,0.00016773,2]
[351159132,1738372233347,-152.21062753,0.00016773,2]
[351159133,1738372233356,-151.2336102,0.00016773,2]
[351159134,1738372233367,-500.0,0.00016773,2]
[351159135,1738372233375,-151.55562065,0.00016773,2]
[351159136,1738372233385,-1365.63,0.00016779,2]
[351159137,1738372233394,-169.044,0.00016779,2]
[351159138,1738372233403,-35156.5241,0.00016779,2]
[351159139,1738372233412,-10558.7677,0.00016779,2]
[351159140,1738372233422,-1002.4156,0.00016779,2]
[351159141,1738372233431,-4005.2767,0.00016779,2]
[351159142,1738372233440,-100758.2493,0.00016779,2]
[351159143,1738372233450,-1000.0,0.00016779,2]
[351159144,1738372233460,-189.44242801,0.00016779,2]
[351159145,1738372233470,-157.09354848,0.00016789,2]
[351159146,1738372233480,-157.09354848,0.0001679,2]
[351159147,1738372233489,-236.47843907,0.00016799,2]
[351159148,1738372233499,-500.0,0.00016799,2]
[351159149,1738372233508,-500.0,0.00016799,2]
[351159150,1738372233518,-175.86022304,0.00016799,2]
[351159151,1738372233528,-502.58153223,0.00016799,2]
[351159152,1738372233537,-206.62462526,0.00016799,2]
[351159153,1738372233547,-503.65408598,0.00016799,2]
[351159154,1738372233556,-500.0,0.00016799,2]
[351159155,1738372233565,-500.0,0.00016799,2]
[351159156,1738372233574,-500.0,0.00016799,2]
[351159157,1738372233584,-275.37591735,0.00016799,2]
[351159158,1738372233593,-232.76074487,0.00016799,2]
[351159159,1738372233602,-500.0,0.00016799,2]
[351159160,1738372233613,-1283134.01852312,0.000168,2]
[351159161,1738372233931,-1771.80055567,0.000168,2]
[351159162,1738372233943,-12180.65774804,0.000168,2]
[351159163,1738372233982,-1882.32035703,0.000168,2]
[351159164,1738372234019,-53781.99343698,0.000168,2]
[351159165,1738372234030,-3402.71899897,0.000168,2]
[351159166,1738372234042,-277.224,0.000168,2]
[351159167,1738372234053,-35218.65607744,0.000168,2]
[351159168,1738372234064,-5996.39302432,0.000168,2]
[351159169,1738372234076,-7704.2232308,0.000168,2]
[351159170,1738372234096,-620.0,0.000168,2]
[351159173,1738372238234,-43269.20369395,0.000168,2]
[351159175,1738372238355,-8357.31044982,0.000168,2]
[351159345,1738372240314,-453.04661786,0.000168,2]
[351159358,1738372240432,-547.25057539,0.000168,2]
[351159904,1738372246545,-300.15856336,0.00016699,2]
[351159905,1738372246559,-2500.36646995,0.00016699,2]
[351159988,1738373020009,155.51,0.00010137,2]
[351160008,1738373432509,-550.0,0.00013,2]
[351160009,1738373432519,-170.0,0.00013699,2]
[351160010,1738373432528,-150.0,0.0001371,2]
[351160011,1738373432537,-862.91,0.00013789,2]
[351160012,1738373432547,-150.0,0.00013967,2]
[351160013,1738373432557,-2642.82935839,0.00014489,2]
[351160014,1738373432567,-1801.91300032,0.00014489,2]
[351160015,1738373432576,-1000.0,0.00014589,2]
[351160016,1738373432585,-201.58,0.00014615,2]
[351160017,1738373432594,-600.0,0.00015,2]
[351160018,1738373432604,-1000.0,0.00015057,2]
[351160019,1738373432613,-150.0,0.00015068,2]
[351160020,1738373432622,-192.29,0.00015155,2]
[351160021,1738373432632,-192.29,0.00015159,2]
[351160022,1738373432641,-192.29,0.00015163,2]
[351160023,1738373432650,-192.29,0.00015167,2]
[351160024,1738373432659,-192.29,0.00015171,2]
[351160025,1738373432669,-192.29,0.00015175,2]
[351160026,1738373432678,-192.29,0.00015179,2]
[351160027,1738373432687,-192.29,0.00015183,2]
[351160028,1738373432697,-192.29,0.00015187,2]
[351160029,1738373432706,-300.0,0.00015191,2]
[351160030,1738373432716,-192.29,0.00015191,2]
[351160031,1738373432725,-192.29,0.00015195,2]
[351160032,1738373432736,-192.29,0.00015199,2]
[351160033,1738373432744,-192.29,0.00015203,2]
[351160034,1738373432753,-192.29,0.00015207,2]
[351160035,1738373432763,-300.0,0.00015211,2]
[351160036,1738373432773,-192.29,0.00015211,2]
[351160037,1738373432782,-192.29,0.00015215,2]
[351160038,1738373432791,-192.29,0.00015219,2]
[351160039,1738373432801,-459.66,0.00015221,2]
[351160040,1738373432810,-192.29,0.00015223,2]
[351160041,1738373432819,-192.29,0.00015227,2]
[351160042,1738373432829,-192.29,0.00015231,2]
[351160043,1738373432839,-200.0,0.00015251,2]
[351160044,1738373432848,-1000.0,0.00015353,2]
[351160045,1738373432858,-404.92,0.00015409,2]
[351160046,1738373432868,-170.58,0.00015549,2]
[351160047,1738373432879,-1996.0,0.00015723,2]
[351160048,1738373432888,-186.57,0.00015728,2]
[351160049,1738373432898,-1988.3,0.00015768,2]
[351160050,1738373432907,-418.95,0.00015805,2]
[351160051,1738373432916,-166.28,0.00015814,2]
[351160052,1738373432926,-500.0,0.00015826,2]
[351160053,1738373432935,-862.91,0.00016053,2]
[351160054,1738373432946,-1000.0,0.00016262,2]
[351160055,1738373432955,-150.0,0.00016438,2]
[351160056,1738373432964,-301.33,0.00016438,2]
[351160057,1738373432973,-262.5,0.00016537,2]
[351160058,1738373432982,-708.1553114,0.00016542,2]
[351160059,1738373432991,-374.17,0.00016599,2]
[351160060,1738373433000,-377.07,0.00016599,2]
[351160062,1738373433009,-374.21,0.00016599,2]
[351160064,1738373433019,-381.78,0.00016599,2]
[351160065,1738373433028,-376.42,0.00016599,2]
[351160066,1738373433037,-337.94414543,0.00016599,2]
[351160067,1738373433049,-41.04585457,0.00016599,2]
[351160068,1738373433059,-369.21,0.00016599,2]
[351160069,1738373433068,-369.57,0.00016599,2]
[351160070,1738373433076,-1164.15414543,0.00016599,2]
[351160071,1738373433092,-15.25009961,0.00016599,2]
[351160072,1738373433101,-784.74987039,0.000166,2]
[351160073,1738373433112,-1561.440015,0.000166,2]
[351160074,1738373433124,-1033.37201461,0.000166,2]
[351160075,1738373433291,-1918.7513,0.000166,2]
[351160076,1738373433302,-5000.0,0.000166,2]
[351160077,1738373433312,-170.36330606,0.000166,2]
[351160078,1738373433323,-420.0,0.00016622,2]
[351160079,1738373433333,-1039.0622,0.00016679,2]
[351160080,1738373433342,-370.16,0.00016679,2]
[351160081,1738373433352,-376.23,0.00016679,2]
[351160082,1738373433362,-1000.0,0.00016679,2]
[351160083,1738373433372,-265179.15718546,0.00016689,2]
[351160084,1738373433382,-1000.0,0.00016689,2]
[351160085,1738373433392,-369.93,0.00016699,2]
[351160086,1738373433405,-371.33,0.00016699,2]
[351160087,1738373433415,-377.0,0.00016699,2]
[351160088,1738373433425,-373.44,0.00016699,2]
[351160089,1738373433435,-372.37,0.00016699,2]
[351160090,1738373433446,-379.32,0.00016699,2]
[351160091,1738373433457,-380.21,0.00016699,2]
[351160092,1738373433467,-500.0,0.00016699,2]
[351160093,1738373433477,-195.46985747,0.00016699,2]
[351160094,1738373433487,-500.2213041,0.00016699,2]
[351160095,1738373433497,-150.0,0.00016699,2]
[351160096,1738373433506,-3019.69932772,0.000167,2]
[351160097,1738373433516,-98123.3084,0.000167,2]
[351160098,1738373433526,-106923.68493669,0.000167,2]
[351160099,1738373433535,-238.82947614,0.000167,2]
[351160100,1738373433545,-328.91874578,0.000167,2]
[351160101,1738373433555,-198.29,0.00016712,2]
[351160102,1738373433564,-150.0,0.0001675,2]
[351160103,1738373433574,-1179.404245,0.00016768,2]
[351160104,1738373433584,-500.0,0.00016773,2]
[351160105,1738373433594,-500.0,0.00016773,2]
[351160106,1738373433604,-161.22316855,0.00016773,2]
[351160107,1738373433614,-151.25978169,0.00016773,2]
[351160108,1738373433624,-408.8893742,0.00016773,2]
[351160109,1738373433634,-394.09369042,0.00016773,2]
[351160110,1738373433644,-170.36330603,0.00016786,2]
[351160111,1738373433656,-160.78099202,0.0001679,2]
[351160112,1738373433665,-261146.3401993,0.00016798,2]
[351160113,1738373433678,-3952.25679166,0.00016798,2]
[351160114,1738373433711,-12469.55380352,0.00016798,2]
[351160115,1738373433721,-300.0,0.00016799,2]
[351160116,1738373433731,-666.0,0.00016799,2]
[351160117,1738373433740,-151.63427934,0.00016799,2]
[351160118,1738373433750,-500.0,0.00016799,2]
[351160119,1738373433759,-309.20194245,0.00016799,2]
[351160120,1738373433769,-265.16575153,0.00016799,2]
[351160121,1738373433778,-36658.16608746,0.000168,2]
[351160122,1738373433790,-480434.50008562,0.000168,2]
[351160123,1738373433811,-266241.87882796,0.000168,2]
[351160124,1738373433858,-20313.99999999,0.000168,2]
[351160125,1738373433869,-455.05489191,0.000168,2]
[351160126,1738373433901,-329.58267654,0.000168,2]
[351160127,1738373433913,-5049.42105327,0.000168,2]
[351160128,1738373433935,-4130.37624425,0.000168,2]
[351160129,1738373433949,-980.743781,0.000168,2]
[351160130,1738373433961,-250.0,0.000168,2]
[351160131,1738373438461,-2219.533677,0.000168,2]
[351160132,1738373438571,-252.90102083,0.000168,2]
[351160133,1738373438582,-20529.21312739,0.000168,2]
[351160134,1738373438662,-4865.79896752,0.000168,2]
[351160135,1738373438673,-7259.42425626,0.000168,2]
[351160258,1738373440839,-743.2500025,0.000168,2]
[351160259,1738373440861,-339.05374173,0.000168,2]
[351160260,1738373440872,-3555.41267974,0.000168,2]
[351160261,1738373440882,-274.71037845,0.000168,2]
[351160262,1738373440893,-1027.2852686,0.000168,2]
[351160263,1738373440962,-6492.98264759,0.000168,2]
[351160270,1738373443569,-2899.63193002,0.000168,2]
[351160271,1738373443646,-1339.53652299,0.000168,2]
[351160272,1738373443657,-250.99352257,0.000168,2]
[351160273,1738373443719,-5197.04994013,0.000168,2]
[351160274,1738373443916,-514.24878911,0.000168,2]
[351160297,1738373446656,-2444.27151998,0.000168,2]
[351160298,1738373446667,-1793.02217354,0.000168,2]
[351160299,1738373446734,-19294.98325664,0.000168,2]
[351160300,1738373446745,-500.0,0.000168,2]
[351160301,1738373446824,-1065.83165509,0.000168,2]
[351160310,1738373674668,230.26876664,0.0002,120]
[351160312,1738373807951,179.88,0.0002101,120]
[351160315,1738373998612,150.67,0.00010137,2]
[351160340,1738374631559,-861.09,0.00013231,2]
[351160341,1738374631569,-170.68,0.00013699,2]
[351160342,1738374631579,-150.0,0.00013761,2]
[351160343,1738374631589,-150.0,0.00013892,2]
[351160344,1738374631598,-150.0,0.00014554,2]
[351160345,1738374631761,-150.0,0.00015041,2]
[351160346,1738374631772,-158.54,0.00015047,2]
[351160347,1738374631781,-150.0,0.00015068,2]
[351160348,1738374631791,-150.0,0.00015068,2]
[351160349,1738374631800,-150.0,0.00015068,2]
[351160350,1738374631810,-1000.0,0.00015265,2]
[351160351,1738374631819,-319.92,0.00015336,2]
[351160352,1738374631828,-861.09,0.00015495,2]
[351160353,1738374631837,-167.19,0.00015562,2]
[351160354,1738374631846,-167.19,0.00015578,2]
[351160355,1738374631856,-167.19,0.00015593,2]
[351160356,1738374631865,-167.19,0.00015609,2]
[351160357,1738374631874,-167.19,0.00015625,2]
[351160358,1738374631883,-167.19,0.0001564,2]
[351160359,1738374631892,-164.02,0.00015659,2]
[351160360,1738374631901,-200.0,0.00015682,2]
[351160361,1738374631910,-176.23,0.00015716,2]
[351160362,1738374631919,-503.17,0.00015735,2]
[351160363,1738374631928,-1323.52,0.00015756,2]
[351160364,1738374631937,-300.0,0.00015772,2]
[351160365,1738374631947,-300.0,0.00015773,2]
[351160366,1738374631959,-2342.14,0.00015774,2]
[351160367,1738374631968,-250.0,0.00015793,2]
[351160368,1738374631978,-158.54,0.00015799,2]
[351160369,1738374631987,-150.0,0.00016438,2]
[351160370,1738374631996,-262.2235,0.000165,2]
[351160371,1738374632006,-968.51759676,0.000165,2]
[351160372,1738374632015,-4019.4605,0.000165,2]
[351160373,1738374632024,-150.96,0.00016511,2]
[351160374,1738374632033,-355.7935594,0.00016541,2]
[351160375,1738374632043,-158.54,0.00016552,2]
[351160376,1738374632052,-1000.0,0.00016589,2]
[351160377,1738374632061,-173.48261173,0.00016589,2]
[351160378,1738374632070,-1403.143,0.00016589,2]
[351160379,1738374632080,-24419.77875767,0.000166,2]
[351160384,1738374632121,-8968.55624678,0.000166,2]
[351160408,1738374637644,-152.36227147,0.000165,2]
[351160409,1738374637654,-14815.25586888,0.000166,2]
[351160410,1738374637685,-2001.44,0.000166,2]
[351160411,1738374637818,-556.7271784,0.000166,2]
[351160412,1738374637830,-118600.78296328,0.000166,2]
[351160413,1738374637839,-425276.62845439,0.000166,2]
[351160414,1738374637848,-291.33415069,0.000166,2]
[351160415,1738374637858,-500.0,0.00016665,2]
[351160416,1738374637868,-500.0,0.00016666,2]
[351160417,1738374637877,-6967.0916,0.000167,2]
[351160418,1738374637886,-429.56700823,0.000167,2]
[351160419,1738374637895,-634.02942603,0.00016711,2]
[351160420,1738374637904,-198.31,0.00016712,2]
[351160421,1738374637913,-379.2,0.00016722,2]
[351160422,1738374637922,-968.51759671,0.00016753,2]
[351160424,1738374637932,-500.0,0.00016773,2]
[351160426,1738374637942,-239.96126823,0.00016773,2]
[351160428,1738374637951,-500.6670818,0.00016773,2]
[351160430,1738374637960,-500.0,0.00016773,2]
[351160432,1738374637969,-55555.0,0.0001678,2]
[351160434,1738374637978,-2829.38451263,0.0001678,2]
[351160436,1738374637987,-159.67924812,0.0001678,2]
[351160438,1738374637996,-221.26507029,0.0001678,2]
[351160440,1738374638005,-165.82434472,0.0001678,2]
[351160442,1738374638014,-160.78099202,0.0001679,2]
[351160444,1738374638023,-836.66781985,0.00016798,2]
[351160446,1738374638032,-377.71,0.00016798,2]
[351160448,1738374638041,-2007.0,0.000168,2]
[351160450,1738374638050,-697039.76584295,0.000168,2]
[351160452,1738374638060,-3481.36,0.000168,2]
[351160454,1738374638069,-210796.9837438,0.000168,2]
[351160456,1738374638078,-182.0,0.000168,2]
[351160458,1738374638087,-3000.0,0.000168,2]
[351160460,1738374638096,-150.75,0.000168,2]
[351160462,1738374638106,-272.41,0.00016813,2]
[351160464,1738374638114,-600.0,0.00016873,2]
[351160466,1738374638124,-500.0,0.00016873,2]
[351160468,1738374638133,-500.77268489,0.00016873,2]
[351160470,1738374638141,-150.64677941,0.00016873,2]
[351160472,1738374638151,-267.99618664,0.00016879,2]
[351160474,1738374638160,-2270602.59721295,0.00016879,2]
[351160510,1738374639757,-152.36227144,0.00016547,2]
[351160511,1738374639766,-6022.88358812,0.00016879,2]
[351160512,1738374639780,-912.35299915,0.00016879,2]
[351160513,1738374639791,-1027.7,0.00016879,2]
[351160514,1738374639860,-1274.66554968,0.00016879,2]
[351160521,1738374642625,-1815.0,0.000168,2]
[351160522,1738374642635,-6135.30606416,0.00016879,2]
[351160549,1738374645735,-152.36227144,0.00016593,2]
[351160550,1738374645748,-2925.42724909,0.00016879,2]
[351160551,1738374645759,-334.31234037,0.00016879,2]
[351160552,1738374645789,-3064.3425999,0.00016879,2]
[351160556,1738374945651,266.12,0.00010137,2]
[351160557,1738375022353,213.020111,0.00021,120]
[351160568,1738375831744,-550.0,0.00013,2]
[351160569,1738375831754,-243.07877249,0.00013415,2]
[351160570,1738375831797,-653.06122751,0.00013415,2]
[351160571,1738375831807,-53.86,0.00013783,2]
[351160572,1738375831903,-96.14,0.00013783,2]
[351160573,1738375831913,-293.35935548,0.000142,2]
[351160574,1738375831922,-150.0,0.000143,2]
[351160575,1738375831931,-7048.0,0.00014842,2]
[351160576,1738375831941,-600.0,0.00015,2]
[351160577,1738375831951,-293.35935547,0.00015002,2]
[351160578,1738375831960,-250.0,0.00015141,2]
[351160579,1738375831969,-214.3,0.00015265,2]
[351160580,1738375831978,-19860.19,0.00015266,2]
[351160581,1738375831988,-200.0,0.00015306,2]
[351160582,1738375831997,-255.31,0.00015314,2]
[351160583,1738375832006,-200.0,0.00015318,2]
[351160584,1738375832015,-23900.0,0.00015554,2]
[351160585,1738375832024,-3173.99,0.00015573,2]
[351160586,1738375832033,-655.89,0.00015584,2]
[351160587,1738375832043,-605.2,0.0001566,2]
[351160588,1738375832051,-170.58,0.0001566,2]
[351160589,1738375832061,-1000.0,0.00015674,2]
[351160590,1738375832070,-896.14,0.00015679,2]
[351160591,1738375832079,-594.12577793,0.00015786,2]